bitfinex/quotes_BTCUSD_20250922
["timestamp","ask_amount","ask_price","bid_price","bid_amount"]
[1758525347488,1.4028562,112940.0,112930.0,4e-05]
[1758525348045,0.66245486,112940.0,112930.0,4e-05]
[1758525348189,1.4028162,112940.0,112930.0,4e-05]
[1758525348413,1.7427762,112940.0,112930.0,0.17714085]
[1758525349043,1.4415362,112940.0,112930.0,4e-05]
[1758525349260,1.7178262,112940.0,112930.0,4e-05]
[1758525349677,1.4393962,112940.0,112930.0,4e-05]
[1758525349864,1.7405962,112940.0,112930.0,4e-05]
[1758525350851,0.69903486,112940.0,112930.0,4e-05]
[1758525351059,1.7405562,112940.0,112930.0,4e-05]
[1758525351923,1.7405162,112940.0,112930.0,4e-05]
[1758525352092,1.7405162,112940.0,112930.0,0.00012229]
[1758525353132,1.0993962,112940.0,112930.0,0.00012229]
[1758525353459,1.4004362,112940.0,112930.0,0.00012229]
[1758525354325,0.66007486,112940.0,112930.0,0.00012229]
[1758525354522,1.4004362,112940.0,112930.0,0.00012229]
[1758525356400,1.77061687,112940.0,112930.0,0.00012229]
[1758525358434,1.0993962,112940.0,112930.0,0.00012229]
[1758525358634,1.4959962,112940.0,112930.0,0.00012229]
[1758525359044,1.1951562,112940.0,112930.0,0.00012229]
[1758525359284,1.4959962,112940.0,112930.0,0.00012229]
[1758525359640,1.49600134,112940.0,112930.0,0.00012229]
[1758525360245,1.17235134,112940.0,112930.0,0.00012229]
[1758525360485,1.47310848,112940.0,112930.0,0.00012229]
[1758525360700,1.49580848,112940.0,112930.0,0.00012229]
[1758525361128,1.49580605,112940.0,112930.0,0.00012229]
[1758525362319,1.17234605,112940.0,112930.0,0.00012229]
[1758525362503,1.46994605,112940.0,112930.0,0.02183229]
[1758525362706,1.46994627,112940.0,112930.0,0.00012229]
[1758525362936,1.49588627,112940.0,112930.0,0.00012229]
[1758525363063,1.49588627,112940.0,112930.0,0.17722314]
[1758525363263,1.47318627,112940.0,112930.0,0.17722314]
[1758525363505,1.42318627,112940.0,112930.0,0.17722314]
[1758525363706,0.67946493,112940.0,112930.0,0.19893314]
[1758525364039,0.72116521,112940.0,112930.0,0.19893314]
[1758525364272,0.24134004,112940.0,112930.0,0.28420281]
[1758525364479,1.45938655,112940.0,112930.0,0.28420281]
[1758525364685,1.45316087,112940.0,112930.0,0.28420281]
[1758525364897,0.71279953,112940.0,112930.0,0.28420281]
[1758525365100,1.45316087,112940.0,112930.0,0.28420281]
[1758525365304,1.45521087,112940.0,112930.0,0.28420281]
[1758525365519,1.48115087,112940.0,112930.0,0.08539196]
[1758525365935,1.48115087,112940.0,112930.0,0.26249281]
[1758525366165,0.74078953,112940.0,112930.0,0.26249281]
[1758525366377,0.74078953,112940.0,112930.0,0.32979645]
[1758525366807,1.48115087,112940.0,112930.0,0.33333845]
[1758525367029,0.53179049,112940.0,112930.0,0.33333845]
[1758525367248,0.82042067,112940.0,112930.0,0.35504845]
[1758525367682,1.36768651,112940.0,112930.0,0.35504845]
[1758525367893,1.37297651,112940.0,112930.0,0.33333845]
[1758525368096,1.39567651,112940.0,112930.0,0.33333845]
[1758525368721,1.14868199,112940.0,112930.0,0.33333845]
[1758525369335,1.15758282,112940.0,112930.0,0.33333845]
[1758525369899,1.15759717,112940.0,112930.0,0.33333845]
[1758525371428,1.20774717,112940.0,112930.0,0.1562376]
[1758525371641,1.20774717,112940.0,112930.0,0.00366429]
[1758525371846,1.21396773,112940.0,112930.0,0.00366429]
[1758525372249,1.22226218,112940.0,112930.0,0.00366429]
[1758525372450,1.24888893,112940.0,112930.0,0.00366429]
[1758525372653,1.24059448,112940.0,112930.0,0.00366429]
[1758525373524,1.12193041,112940.0,112930.0,0.00366429]
[1758525374092,1.11570985,112940.0,112930.0,0.00366429]
[1758525374317,1.12192871,112940.0,112930.0,0.00366429]
[1758525375107,1.11570985,112940.0,112930.0,0.00366429]
[1758525375749,1.12192673,112940.0,112930.0,0.00366429]
[1758525376145,1.12192751,112940.0,112930.0,0.00366429]
[1758525376355,1.11570985,112940.0,112930.0,0.00366429]
[1758525377161,1.12192773,112940.0,112930.0,0.00366429]
[1758525378177,1.48162773,112940.0,112930.0,0.00366429]
[1758525378391,1.49821985,112940.0,112930.0,0.00366429]
[1758525380589,1.50443553,112940.0,112930.0,0.00366429]
[1758525381228,1.01105436,112940.0,112930.0,0.00366429]
[1758525381451,1.50431553,112940.0,112930.0,0.00366429]
[1758525382667,1.20439553,112940.0,112930.0,0.00366429]
[1758525382879,1.50423553,112940.0,112930.0,0.00366429]
[1758525384302,1.20439553,112940.0,112930.0,0.00366429]
[1758525384498,1.50419553,112940.0,112930.0,0.00366429]
[1758525386941,1.50407553,112940.0,112930.0,0.00366429]
[1758525387817,1.46575893,112940.0,112930.0,0.00366429]
[1758525389881,1.46563893,112940.0,112930.0,0.00366429]
[1758525391384,1.17491147,112940.0,112930.0,0.00366429]
[1758525391589,1.47443147,112940.0,112930.0,0.00366429]
[1758525391796,1.47439147,112940.0,112930.0,0.00366429]
[1758525392937,1.46817579,112940.0,112930.0,0.00366429]
[1758525394490,1.47439667,112940.0,112930.0,0.00366429]
[1758525395908,1.47414111,112940.0,112930.0,0.00366429]
[1758525397366,1.09110111,112940.0,112930.0,0.00366429]
[1758525398531,1.09110009,112940.0,112930.0,0.00366429]
[1758525398948,0.59771892,112940.0,112930.0,0.00366429]
[1758525399160,1.09110009,112940.0,112930.0,0.00366429]
[1758525402522,1.09110362,112940.0,112930.0,0.00366429]
[1758525403107,0.79162362,112940.0,112930.0,0.00366429]
[1758525403306,0.56927245,112940.0,112930.0,0.28774481]
[1758525403491,1.06265362,112940.0,112930.0,0.28774481]
[1758525404124,1.06472362,112940.0,112930.0,0.26603481]
[1758525404325,1.06472362,112940.0,112930.0,0.08893396]
[1758525404326,1.06777362,112940.0,112930.0,0.08893396]
[1758525404573,1.08422023,112940.0,112930.0,0.26603481]
[1758525405596,1.06155023,112940.0,112930.0,0.08893396]
[1758525405816,1.07330323,112940.0,112930.0,0.15619106]
[1758525408835,1.07330323,112940.0,112930.0,0.00366429]
[1758525409043,1.07952786,112940.0,112930.0,0.00366429]
[1758525411719,0.78044786,112940.0,112930.0,0.00366429]
[1758525411930,1.07912786,112940.0,112930.0,0.00366429]
[1758525413783,0.58574669,112940.0,112930.0,0.00366429]
[1758525414031,0.38075152,112940.0,112930.0,0.00366429]
[1758525414273,0.86790806,112940.0,112930.0,0.28774481]
[1758525414652,0.85907552,112940.0,112930.0,0.28774481]
[1758525415235,0.85907552,112940.0,112930.0,0.35458305]
[1758525415443,0.36569435,112940.0,112930.0,0.35458305]
[1758525415659,0.86407552,112940.0,112930.0,0.35558305]
[1758525416231,0.87296676,112940.0,112930.0,0.35558305]
[1758525417085,0.07213435,112940.0,112930.0,0.35558305]
[1758525417297,0.37069435,112940.0,112930.0,0.35558305]
[1758525417501,0.86407552,112940.0,112930.0,0.35558305]
[1758525418123,0.37069435,112940.0,112930.0,0.35558305]
[1758525419159,0.86407552,112940.0,112930.0,0.35558305]
[1758525419357,0.86407552,112940.0,112930.0,0.33387305]
[1758525419748,0.86407552,112940.0,112930.0,0.35558305]
[1758525420303,0.86403552,112940.0,112930.0,0.35558305]
[1758525421891,0.86598552,112940.0,112930.0,0.33387305]
[1758525423809,0.86903552,112940.0,112930.0,0.33387305]
[1758525424061,1.07106069,112940.0,112930.0,0.33387305]
[1758525424299,1.07106069,112940.0,112930.0,0.1567722]
[1758525424815,1.07106069,112940.0,112930.0,0.33387305]
[1758525425058,1.07106069,112940.0,112930.0,0.1567722]
[1758525425783,1.07106069,112940.0,112930.0,0.33387305]
[1758525426720,1.07106069,112940.0,112930.0,0.1567722]
[1758525427371,0.77254069,112940.0,112930.0,0.07150253]
[1758525427577,1.07720843,112940.0,112930.0,0.07150253]
[1758525427785,1.07720843,112940.0,112930.0,0.00466429]
[1758525428592,1.10383556,112940.0,112930.0,0.00466429]
[1758525428793,1.72086224,112940.0,112930.0,0.00466429]
[1758525428988,1.72085782,112940.0,112930.0,0.00466429]
[1758525433961,0.31200997,112940.0,112930.0,0.00466429]
[1758525434133,1.42241782,112940.0,112930.0,0.00466429]
[1758525434519,1.72085782,112940.0,112930.0,0.00466429]
[1758525435649,1.75100972,112940.0,112930.0,0.00466429]
[1758525436742,1.75096972,112940.0,112930.0,0.00466429]
[1758525438201,1.77838457,112940.0,112930.0,0.00466429]
[1758525439338,1.75096972,112940.0,112930.0,0.00466429]
[1758525440892,1.45256972,112940.0,112930.0,0.00466429]
[1758525441369,1.75096972,112940.0,112930.0,0.00466429]
[1758525441577,1.45256972,112940.0,112930.0,0.00466429]
[1758525441792,1.75092972,112940.0,112930.0,0.00466429]
[1758525442217,1.45256972,112940.0,112930.0,0.00466429]
[1758525442436,1.42762972,112940.0,112930.0,0.00466429]
[1758525442682,0.34208187,112940.0,112930.0,0.00466429]
[1758525442864,1.38071377,112940.0,112930.0,0.00466429]
[1758525443637,1.75084972,112940.0,112930.0,0.00466429]
[1758525445108,1.75084652,112940.0,112930.0,0.00466429]
[1758525447370,1.45248652,112940.0,112930.0,0.00466429]
[1758525447586,1.01806855,112940.0,112930.0,0.00466429]
[1758525447795,1.31638855,112940.0,112930.0,0.02637429]
[1758525447999,1.01806855,112940.0,112930.0,0.02637429]
[1758525448210,1.32260967,112940.0,112930.0,0.02637429]
[1758525448631,1.02428967,112940.0,112930.0,0.02637429]
[1758525448830,1.32260967,112940.0,112930.0,0.02637429]
[1758525449444,1.34964967,112940.0,112930.0,0.00466429]
[1758525450918,0.60937777,112940.0,112930.0,0.00466429]
[1758525451135,0.31105777,112940.0,112930.0,0.00466429]
[1758525451392,1.34964967,112940.0,112930.0,0.00466429]
[1758525453867,1.34964967,112940.0,112930.0,0.00112229]
[1758525454088,1.71978562,112940.0,112930.0,0.00112229]
[1758525456295,1.74993752,112940.0,112930.0,0.00112229]
[1758525457939,2.08993752,112940.0,112930.0,0.00112229]
[1758525459329,2.08985752,112940.0,112930.0,0.00112229]
[1758525461003,0.68120967,112940.0,112930.0,0.00112229]
[1758525461218,2.08985752,112940.0,112930.0,0.00112229]
[1758525463189,0.68120967,112940.0,112930.0,0.00112229]
[1758525463366,1.71968157,112940.0,112930.0,0.00112229]
[1758525463572,1.42148157,112940.0,112930.0,0.00112229]
[1758525463777,1.68952967,112940.0,112930.0,0.00112229]
[1758525464220,1.39132967,112940.0,112930.0,0.00112229]
[1758525464428,1.66544967,112940.0,112930.0,0.00112229]
[1758525464636,0.92377659,112940.0,112930.0,0.28520281]
[1758525464842,1.28769142,112940.0,112930.0,0.28520281]
[1758525465474,1.28765142,112940.0,112930.0,0.28520281]
[1758525467127,1.28765142,112940.0,112930.0,0.35261283]
[1758525469535,1.28765142,112940.0,112930.0,0.17551198]
[1758525469740,1.28971142,112940.0,112930.0,0.00112229]
[1758525469938,1.31675142,112940.0,112930.0,0.00112229]
[1758525470243,1.32297818,112940.0,112930.0,0.00112229]
[1758525472831,1.32297926,112940.0,112930.0,0.00112229]
[1758525473989,1.72326711,112940.0,112930.0,0.00112229]
[1758525474199,2.06326711,112940.0,112930.0,0.00112229]
[1758525474402,2.08989591,112940.0,112930.0,0.00112229]
[1758525474968,2.09819894,112940.0,112930.0,0.00112229]
[1758525475167,2.11732795,112940.0,112930.0,0.00112229]
[1758525476282,2.10902492,112940.0,112930.0,0.00112229]
[1758525477404,1.81086492,112940.0,112930.0,0.00112229]
[1758525477626,2.10886492,112940.0,112930.0,0.00112229]
[1758525478083,0.70045707,112940.0,112930.0,0.00112229]
[1758525478305,1.71955996,112940.0,112930.0,0.00112229]
[1758525478730,2.08969591,112940.0,112930.0,0.00112229]
[1758525480960,1.79173346,112940.0,112930.0,0.00112229]
[1758525481185,1.71951751,112940.0,112930.0,0.00112229]
[1758525481408,2.08965346,112940.0,112930.0,0.00112229]
[1758525482293,1.42159751,112940.0,112930.0,0.00112229]
[1758525482510,1.71951751,112940.0,112930.0,0.00112229]
[1758525483635,1.71947751,112940.0,112930.0,0.00112229]
[1758525483877,2.08961346,112940.0,112930.0,0.00112229]
[1758525484120,1.79173346,112940.0,112930.0,0.00112229]
[1758525484370,2.08961346,112940.0,112930.0,0.00112229]
[1758525488185,2.08953346,112940.0,112930.0,0.00112229]
[1758525489309,2.08949346,112940.0,112930.0,0.00112229]
[1758525490696,1.47259974,112940.0,112930.0,0.00112229]
[1758525491534,1.47255974,112940.0,112930.0,0.00112229]
[1758525493220,1.85563974,112940.0,112930.0,0.00112229]
[1758525496252,1.85209874,112940.0,112930.0,0.00112229]
[1758525497351,1.55437874,112940.0,112930.0,0.00112229]
[1758525497546,1.85197874,112940.0,112930.0,0.00112229]
[1758525499735,1.82182684,112940.0,112930.0,0.00112229]
[1758525499965,1.84926489,112940.0,112930.0,0.00112229]
[1758525504234,1.87941679,112940.0,112930.0,0.00112229]
[1758525504435,2.37293092,112940.0,112930.0,0.00112229]
[1758525504731,2.47479573,112940.0,112930.0,0.00112229]
[1758525507682,2.47479573,112940.0,112930.0,0.00012229]
[1758525508094,2.46979573,112940.0,112930.0,0.00012229]
[1758525508308,2.48579573,112940.0,112930.0,0.00112229]
[1758525508937,2.48879573,112940.0,112930.0,0.00112229]
[1758525509523,2.5740654,112940.0,112930.0,0.00112229]
[1758525509944,2.5737454,112940.0,112930.0,0.00112229]
[1758525510783,2.48847573,112940.0,112930.0,0.00112229]
[1758525511567,2.34355721,112940.0,112930.0,0.00112229]
[1758525511769,2.52064238,112940.0,112930.0,0.00112229]
[1758525511974,2.52061968,112940.0,112930.0,0.00112229]
[1758525512618,2.52053968,112940.0,112930.0,0.00112229]
[1758525513718,2.23214162,112940.0,112930.0,1e-08]
[1758525513927,2.52930162,112940.0,112930.0,1e-08]
[1758525514342,2.55394811,112940.0,112930.0,1e-08]
[1758525514555,2.25678811,112940.0,112930.0,1e-08]
[1758525514969,2.52930162,112940.0,112930.0,1e-08]
[1758525515183,2.23214162,112940.0,112930.0,1e-08]
[1758525515374,2.52930162,112940.0,112930.0,1e-08]
[1758525515971,2.52929667,112940.0,112930.0,1e-08]
[1758525516182,2.23213667,112940.0,112930.0,1e-08]
[1758525516414,2.52929667,112940.0,112930.0,1e-08]
[1758525516974,2.52925667,112940.0,112930.0,1e-08]
[1758525518171,2.23213667,112940.0,112930.0,1e-08]
[1758525518631,2.52921667,112940.0,112930.0,1e-08]
[1758525519828,2.23213667,112940.0,112930.0,1e-08]
[1758525520030,2.52917667,112940.0,112930.0,1e-08]
[1758525520579,2.32547667,112940.0,112930.0,1e-08]
[1758525520791,2.52917667,112940.0,112930.0,1e-08]
[1758525521212,2.23213667,112940.0,112930.0,1e-08]
[1758525521466,2.52917667,112940.0,112930.0,1e-08]
[1758525521676,2.52913667,112940.0,112930.0,1e-08]
[1758525522511,2.23213667,112940.0,112930.0,1e-08]
[1758525523145,2.52909667,112940.0,112930.0,1e-08]
[1758525523949,2.52905667,112940.0,112930.0,1e-08]
[1758525526239,2.96805667,112940.0,112930.0,1e-08]
[1758525527997,2.96800026,112940.0,112930.0,1e-08]
[1758525528190,2.96792026,112940.0,112930.0,1e-08]
[1758525528839,3.35112026,112940.0,112930.0,1e-08]
[1758525529662,3.05428026,112940.0,112930.0,1e-08]
[1758525530080,3.35108026,112940.0,112930.0,1e-08]
[1758525530502,3.05428026,112940.0,112930.0,1e-08]
[1758525530698,3.35104026,112940.0,112930.0,1e-08]
[1758525533267,2.42762922,112940.0,112930.0,1e-08]
[1758525533492,3.40639756,112940.0,112930.0,1e-08]
[1758525533694,3.40846762,112940.0,112930.0,1e-08]
[1758525534175,3.39811988,112940.0,112930.0,1e-08]
[1758525534368,0.51711654,112920.0,112910.0,0.02171]
[1758525534578,1.90526775,112920.0,112910.0,0.02171]
[1758525534840,1.93631884,112920.0,112910.0,0.02171]
[1758525535252,1.99590462,112920.0,112910.0,0.02171]
[1758525535689,2.02254116,112920.0,112910.0,0.02171]
[1758525536957,2.02400116,112920.0,112910.0,0.02171]
[1758525537182,1.96441538,112920.0,112910.0,0.02171]
[1758525537427,1.96441538,112920.0,112900.0,8.693e-05]
[1758525537428,0.20728412,112910.0,112900.0,8.693e-05]
[1758525537655,1.12420934,112910.0,112900.0,0.02179693]
[1758525537856,1.14334262,112910.0,112900.0,0.02179693]
[1758525538216,1.16997989,112910.0,112900.0,0.02179693]
[1758525538630,1.16997989,112910.0,112900.0,0.02279693]
[1758525539039,1.17297989,112910.0,112900.0,0.02279693]
[1758525540060,1.55617989,112910.0,112900.0,0.02279693]
[1758525541566,1.64671956,112910.0,112900.0,0.00108693]
[1758525541788,1.67105956,112910.0,112900.0,0.00108693]
[1758525543320,1.75632923,112910.0,112900.0,0.00108693]
[1758525546363,1.75632923,112910.0,112860.0,0.56822158]
[1758525546364,0.51719699,112870.0,112860.0,0.07126631]
[1758525546593,0.51719699,112870.0,112860.0,0.33378588]
[1758525546594,1.40283112,112870.0,112860.0,0.33378588]
[1758525546803,1.40283112,112870.0,112860.0,0.15658294]
[1758525547020,0.90931699,112870.0,112860.0,0.3305646]
[1758525547511,1.40283112,112870.0,112860.0,0.3305646]
[1758525547727,1.40483112,112870.0,112860.0,0.28052733]
[1758525548363,1.40483112,112870.0,112860.0,0.10331663]
[1758525550489,1.45483112,112870.0,112860.0,0.10331663]
[1758525550699,1.33178111,112870.0,112860.0,0.10331663]
[1758525551150,1.03546111,112870.0,112860.0,0.10331663]
[1758525551332,1.33062111,112870.0,112860.0,0.09631663]
[1758525551560,1.32962111,112870.0,112860.0,0.08531663]
[1758525551774,1.32962111,112870.0,112860.0,0.09031663]
[1758525551991,1.32962111,112870.0,112860.0,0.09731663]
[1758525552439,1.35408292,112870.0,112860.0,0.09731663]
[1758525552665,0.6374588,112870.0,112860.0,0.09731663]
[1758525552879,1.35408292,112870.0,112860.0,0.09231663]
[1758525553051,1.38072366,112870.0,112860.0,0.09231663]
[1758525553378,1.38072366,112870.0,112860.0,0.09731663]
[1758525553819,1.33072366,112870.0,112860.0,0.09731663]
[1758525554023,1.38072366,112870.0,112860.0,0.09731663]
[1758525554455,1.06025954,112870.0,112860.0,0.09731663]
[1758525554682,1.43072366,112870.0,112860.0,0.09731663]
[1758525554870,1.43072366,112870.0,112860.0,0.09231663]
[1758525555281,1.43072366,112870.0,112860.0,0.08531663]
[1758525555486,1.80118778,112870.0,112860.0,0.09031663]
[1758525555687,1.50502778,112870.0,112860.0,0.00504696]
[1758525555916,1.06009954,112870.0,112860.0,0.00504696]
[1758525556120,1.80102778,112870.0,112860.0,0.00504696]
[1758525556333,1.50502778,112870.0,112860.0,0.00904696]
[1758525556546,1.80102778,112870.0,112860.0,0.00904696]
[1758525557337,1.80098778,112870.0,112860.0,0.00904696]
[1758525557743,1.13456366,112870.0,112860.0,0.00904696]
[1758525557951,1.80098778,112870.0,112860.0,0.00904696]
[1758525558153,1.80094778,112870.0,112860.0,0.00904696]
[1758525560067,1.80305778,112870.0,112860.0,0.00904696]
[1758525560640,1.80628778,112870.0,112860.0,0.00904696]
[1758525560794,1.82895778,112870.0,112860.0,0.00904696]
[1758525561373,1.91418745,112870.0,112860.0,0.00904696]
[1758525561514,1.94433935,112870.0,112860.0,0.00904696]
[1758525561718,2.31480347,112870.0,112860.0,0.00904696]
[1758525563152,2.31480347,112870.0,112860.0,0.00504696]
[1758525563362,2.32101628,112870.0,112860.0,4.696e-05]
[1758525563562,2.32201628,112870.0,112860.0,4.696e-05]
[1758525563846,2.32801628,112870.0,112860.0,4.696e-05]
[1758525564084,2.32801678,112870.0,112860.0,4.696e-05]
[1758525564284,2.41328645,112870.0,112860.0,4.696e-05]
[1758525564490,2.4138686,112870.0,112860.0,4.696e-05]
[1758525565759,2.43851509,112870.0,112860.0,4.696e-05]
[1758525565980,2.4138686,112870.0,112860.0,4.696e-05]
[1758525566159,2.4137486,112870.0,112860.0,4.696e-05]
[1758525566642,2.43839509,112870.0,112860.0,4.696e-05]
[1758525566840,2.4137086,112870.0,112860.0,4.696e-05]
[1758525567261,2.1179886,112870.0,112860.0,4.696e-05]
[1758525567486,2.4137086,112870.0,112860.0,4.696e-05]
[1758525567694,2.4029546,112870.0,112860.0,4.696e-05]
[1758525569129,2.1072346,112870.0,112860.0,4.696e-05]
[1758525569340,2.47127477,112870.0,112860.0,4.696e-05]
[1758525569533,2.17559477,112870.0,112860.0,4.696e-05]
[1758525569960,2.47123477,112870.0,112860.0,4.696e-05]
[1758525570196,2.47950856,112870.0,112860.0,4.696e-05]
[1758525570421,3.59148307,112870.0,112860.0,4.696e-05]
[1758525570639,3.60803231,112870.0,112860.0,4.696e-05]
[1758525571072,2.4960578,112870.0,112860.0,4.696e-05]
[1758525571205,3.60803231,112870.0,112860.0,4.696e-05]
[1758525571426,3.60103231,112870.0,112860.0,4.696e-05]
[1758525571636,3.25539231,112870.0,112860.0,4.696e-05]
[1758525571849,2.2104178,112870.0,112860.0,0.00104696]
[1758525572051,2.5060178,112870.0,112860.0,0.00104696]
[1758525572255,2.2104178,112870.0,112860.0,0.00104696]
[1758525572482,2.48137131,112870.0,112860.0,0.00104696]
[1758525572692,2.18577131,112870.0,112860.0,0.00104696]
[1758525572890,2.16112656,112870.0,112860.0,0.00104696]
[1758525573090,0.17728924,112810.0,112800.0,0.24881103]
[1758525573308,0.39144,112810.0,112800.0,0.33455198]
[1758525573559,0.09584,112810.0,112800.0,0.33455198]
[1758525573816,0.41805363,112810.0,112800.0,0.33455198]
[1758525574045,0.41805363,112810.0,112800.0,0.26328567]
[1758525574465,0.41905363,112810.0,112800.0,0.27928567]
[1758525574665,0.12349363,112810.0,112800.0,0.27928567]
[1758525574908,0.59634287,112810.0,112800.0,0.27928567]
[1758525575738,0.44436197,112810.0,112800.0,0.27928567]
[1758525575938,0.59634287,112810.0,112800.0,0.27928567]
[1758525577993,0.41905363,112810.0,112800.0,0.27928567]
[1758525578425,0.59634287,112810.0,112800.0,0.27928567]
[1758525578638,0.41897363,112810.0,112800.0,0.27928567]
[1758525579061,0.29822686,112810.0,112800.0,0.27928567]
[1758525579272,0.4755161,112810.0,112800.0,0.27928567]
[1758525579504,0.29822686,112810.0,112800.0,0.27928567]
[1758525579719,0.09584,112810.0,112800.0,0.27928567]
[1758525579938,0.43584,112830.0,112810.0,0.17728924]
[1758525580152,0.43584,112830.0,112820.0,0.28027055]
[1758525580366,0.73128,112830.0,112820.0,0.2625432]
[1758525580579,0.43584,112830.0,112820.0,0.2625432]
[1758525580800,0.48584,112830.0,112820.0,0.2625432]
[1758525580979,0.78128,112830.0,112820.0,0.2625432]
[1758525581248,0.73128,112830.0,112820.0,0.2625432]
[1758525581677,0.41001019,112840.0,112830.0,0.17725782]
[1758525581856,0.77464,112840.0,112830.0,0.26252749]
[1758525582311,0.95188211,112840.0,112830.0,0.08526967]
[1758525582528,0.95188211,112840.0,112830.0,0.26252749]
[1758525582747,1.32254028,112840.0,112830.0,0.26252749]
[1758525582961,1.14529817,112840.0,112830.0,0.3296845]
[1758525583416,1.14729817,112840.0,112830.0,0.3296845]
[1758525583642,1.34960021,112840.0,112830.0,0.3297245]
[1758525583858,1.14729817,112840.0,112830.0,0.3297245]
[1758525584355,0.95388211,112840.0,112830.0,0.15246668]
[1758525584588,1.69519845,112840.0,112830.0,0.15246668]
[1758525584815,1.75025845,112840.0,112830.0,0.08530967]
[1758525585150,1.03223211,112840.0,112830.0,0.08530967]
[1758525585373,1.77354845,112840.0,112830.0,0.08530967]
[1758525585564,1.79844443,112840.0,112830.0,0.08530967]
[1758525585765,2.2737141,112840.0,112830.0,4e-05]
[1758525585996,2.19464186,112840.0,112830.0,4e-05]
[1758525587842,2.22479376,112840.0,112830.0,4e-05]
[1758525588257,1.92935376,112840.0,112830.0,4e-05]
[1758525588461,2.17127186,112840.0,112830.0,4e-05]
[1758525588786,2.19456186,112840.0,112830.0,4e-05]
[1758525589392,2.22121241,112840.0,112830.0,4e-05]
[1758525591153,1.92585241,112840.0,112830.0,4e-05]
[1758525591406,2.22117241,112840.0,112830.0,4e-05]
[1758525592288,1.47985607,112840.0,112830.0,4e-05]
[1758525592497,2.22117241,112840.0,112830.0,4e-05]
[1758525593007,2.22113241,112840.0,112830.0,4e-05]
[1758525594736,2.17113241,112840.0,112830.0,4e-05]
[1758525594980,2.22113241,112840.0,112830.0,4e-05]
[1758525595404,1.90256241,112840.0,112830.0,4e-05]
[1758525595583,2.22113241,112840.0,112830.0,4e-05]
[1758525596009,2.22073241,112840.0,112830.0,4e-05]
[1758525596431,1.47941607,112840.0,112830.0,4e-05]
[1758525596644,2.22073241,112840.0,112830.0,4e-05]
[1758525599242,2.30600208,112840.0,112830.0,4e-05]
[1758525599461,2.22073241,112840.0,112830.0,4e-05]
[1758525599917,2.25088431,112840.0,112830.0,4e-05]
[1758525602234,2.62154248,112840.0,112830.0,4e-05]
[1758525602451,2.25088431,112840.0,112830.0,4e-05]
[1758525602918,2.25076431,112840.0,112830.0,4e-05]
[1758525603146,1.95560431,112840.0,112830.0,4e-05]
[1758525603369,2.25076431,112840.0,112830.0,4e-05]
[1758525604510,1.21428797,112840.0,112830.0,4e-05]
[1758525604759,2.25076431,112840.0,112830.0,4e-05]
[1758525604947,1.10578607,112840.0,112830.0,4e-05]
[1758525605180,1.82156424,112840.0,112830.0,4e-05]
[1758525605403,2.21864241,112840.0,112830.0,4e-05]
[1758525605840,1.47732607,112840.0,112830.0,4e-05]
[1758525606071,2.21864241,112840.0,112830.0,4e-05]
[1758525606298,2.22170241,112840.0,112830.0,4e-05]
[1758525606530,1.89710241,112840.0,112830.0,4e-05]
[1758525606763,2.19222241,112840.0,112830.0,4e-05]
[1758525606974,1.82156424,112840.0,112830.0,4e-05]
[1758525607185,1.82371424,112840.0,112830.0,4e-05]
[1758525607402,2.21864241,112840.0,112830.0,4e-05]
[1758525607632,2.19433241,112840.0,112830.0,4e-05]
[1758525607826,1.42644424,112840.0,112830.0,0.17729782]
[1758525608101,1.82154961,112840.0,112830.0,0.08530967]
[1758525608325,1.78867626,112840.0,112830.0,0.08530967]
[1758525608530,2.10933443,112840.0,112830.0,0.08530967]
[1758525608742,1.81425443,112840.0,112830.0,0.08530967]
[1758525608969,1.07293809,112840.0,112830.0,0.26256749]
[1758525609184,1.22143415,112840.0,112830.0,0.26256749]
[1758525610080,1.39867626,112840.0,112830.0,0.26256749]
[1758525610307,1.79881443,112840.0,112830.0,0.08530967]
[1758525612605,1.79881443,112840.0,112830.0,4e-05]
[1758525612795,1.55177088,112840.0,112830.0,4e-05]
[1758525613982,1.55177088,112840.0,112830.0,0.17729782]
[1758525614212,0.58517598,112840.0,112830.0,0.17729782]
[1758525614443,1.52456088,112840.0,112830.0,0.17729782]
[1758525615673,1.55193088,112840.0,112830.0,4e-05]
[1758525616507,1.55193088,112840.0,112830.0,0.17729782]
[1758525616689,1.05765809,112840.0,112830.0,0.17729782]
[1758525616891,1.55193088,112840.0,112830.0,0.17729782]
[1758525617301,1.05765809,112840.0,112830.0,0.17729782]
[1758525617505,1.55193088,112840.0,112830.0,0.17729782]
[1758525617805,1.07948877,112840.0,112830.0,0.24321044]
[1758525618007,1.22936088,112840.0,112830.0,0.32848011]
[1758525618224,1.52444088,112840.0,112830.0,0.32848011]
[1758525618432,0.73293809,112840.0,112830.0,0.32848011]
[1758525618636,0.4808,112840.0,112830.0,0.32848011]
[1758525618841,0.77588,112840.0,112830.0,0.32848011]
[1758525619264,0.81150103,112840.0,112830.0,0.32848011]
[1758525620195,0.77588,112840.0,112830.0,0.32848011]
[1758525622438,0.95312211,112840.0,112830.0,0.32848011]
[1758525622649,1.4768549,112840.0,112830.0,0.32848011]
[1758525623954,0.98258211,112840.0,112830.0,0.32848011]
[1758525624157,1.4768549,112840.0,112830.0,0.32848011]
[1758525624582,1.29961279,112840.0,112830.0,0.32848011]
[1758525624787,1.4768549,112840.0,112830.0,0.32848011]
[1758525625204,0.77584,112840.0,112830.0,0.32848011]
[1758525625829,1.27011279,112840.0,112830.0,0.32848011]
[1758525626651,0.09784,112840.0,112830.0,0.32848011]
[1758525626875,0.29704,112840.0,112830.0,0.32848011]
[1758525627281,0.002,112840.0,112830.0,0.32848011]
[1758525627484,0.29704,112840.0,112830.0,0.32848011]
[1758525627693,0.49907279,112850.0,112840.0,0.17724211]
[1758525627901,0.97133919,112850.0,112840.0,0.26251178]
[1758525628063,1.00990793,112850.0,112840.0,0.26151178]
[1758525628484,1.03635793,112850.0,112840.0,0.26151178]
[1758525628687,0.85913153,112850.0,112840.0,0.26151178]
[1758525628904,0.85913153,112850.0,112840.0,0.26163656]
[1758525629084,0.82267279,112850.0,112840.0,0.26563656]
[1758525629290,0.99989919,112850.0,112840.0,0.26563656]
[1758525629494,0.99989919,112850.0,112840.0,0.26863656]
[1758525629678,0.85907386,112850.0,112840.0,0.26863656]
[1758525629878,0.82267279,112850.0,112840.0,0.26863656]
[1758525631125,0.99989919,112850.0,112840.0,0.26863656]
[1758525631814,0.82267279,112850.0,112840.0,0.26863656]
[1758525632017,0.85817543,112850.0,112840.0,0.26863656]
[1758525632253,1.03540183,112850.0,112840.0,0.26863656]
[1758525633073,0.85817543,112850.0,112840.0,0.26863656]
[1758525633392,1.03540183,112850.0,112840.0,0.26863656]
[1758525634562,0.03043,112850.0,112840.0,0.26863656]
[1758525634749,0.81966279,112850.0,112840.0,0.26863656]
[1758525635177,0.82259279,112850.0,112840.0,0.26863656]
[1758525636453,0.79614279,112850.0,112840.0,0.26863656]
[1758525637082,0.82259279,112850.0,112840.0,0.26863656]
[1758525637294,0.99981919,112850.0,112840.0,0.26863656]
[1758525637680,0.82259279,112850.0,112840.0,0.26863656]